fUSD/lending_fUSD_20240216
["ID","MTS","AMOUNT","RATE_DAILY","PERIOD"]
[314238806,1708114269812,-500.0,0.00049589,60]
[314238807,1708114269821,-928.87,0.00049589,60]
[314238808,1708114269990,-500.0,0.00049589,60]
[314238809,1708114270001,-500.0,0.00049589,60]
[314238810,1708114270011,-709.23,0.00049589,60]
[314238811,1708114270021,-500.0,0.00049589,60]
[314238812,1708114270031,-500.0,0.00049589,60]
[314238813,1708114270040,-500.0,0.00049589,60]
[314238814,1708114270050,-6496.83,0.00049589,60]
[314238815,1708114270059,-500.0,0.00049589,60]
[314238816,1708114270069,-500.0,0.00049589,60]
[314238817,1708114270078,-500.0,0.00049589,60]
[314238818,1708114270087,-500.0,0.00049589,60]
[314238819,1708114270097,-500.0,0.00049589,60]
[314238820,1708114270106,-500.0,0.00049589,60]
[314238821,1708114270115,-500.0,0.00049589,60]
[314238822,1708114270125,-500.0,0.00049589,60]
[314238823,1708114270135,-500.0,0.00049589,60]
[314238824,1708114270145,-500.0,0.00049589,60]
[314238825,1708114270155,-721.54,0.00049589,60]
[314238826,1708114270164,-500.0,0.00049589,60]
[314238827,1708114270174,-500.0,0.00049589,60]
[314238828,1708114270183,-500.0,0.00049589,60]
[314238829,1708114270193,-500.0,0.00049589,60]
[314238830,1708114270202,-500.0,0.00049589,60]
[314238831,1708114270211,-500.0,0.00049589,60]
[314238832,1708114270220,-500.0,0.00049589,60]
[314238833,1708114270230,-500.0,0.00049589,60]
[314238834,1708114270242,-622.36,0.00049589,60]
[314238835,1708114270251,-500.0,0.00049589,60]
[314238836,1708114270260,-500.0,0.00049589,60]
[314238837,1708114270270,-500.0,0.00049589,60]
[314238838,1708114270280,-500.0,0.00049589,60]
[314238839,1708114270289,-500.0,0.00049589,60]
[314238840,1708114270299,-500.0,0.00049589,60]
[314238841,1708114270308,-2177.28,0.00049589,60]
[314238842,1708114270318,-500.0,0.00049589,60]
[314238843,1708114270328,-500.0,0.00049589,60]
[314238844,1708114270338,-585.97314498,0.00049589,60]
[314238845,1708114270347,-2392.47,0.00049589,60]
[314238846,1708114270357,-500.0,0.00049589,60]
[314238847,1708114270367,-500.0,0.00049589,60]
[314238848,1708114270376,-500.0,0.00049589,60]
[314238849,1708114270388,-500.0,0.00049589,60]
[314238850,1708114270397,-8415.09,0.00049589,60]
[314238851,1708114270407,-1472.08,0.00049589,60]
[314238852,1708114270417,-2871.6,0.00049589,60]
[314238853,1708114270427,-500.0,0.00049589,60]
[314238854,1708114270438,-500.0,0.00049589,60]
[314238855,1708114270448,-500.0,0.00049589,60]
[314238856,1708114270459,-500.0,0.00049589,60]
[314238857,1708114270469,-150.0,0.00049589,60]
[314238858,1708114270479,-608.03751442,0.00049589,60]
[314238859,1708114270489,-1952.09,0.00049589,60]
[314238860,1708114270501,-500.0,0.00049589,60]
[314238861,1708114270512,-500.0,0.00049589,60]
[314238862,1708114270522,-500.0,0.00049589,60]
[314238863,1708114270531,-500.0,0.00049589,60]
[314238864,1708114270540,-500.0,0.00049589,60]
[314238865,1708114270550,-723.33,0.00049589,60]
[314238866,1708114270559,-500.0,0.00049589,30]
[314238867,1708114270569,-3178.54,0.00049589,60]
[314238868,1708114270579,-585.43,0.00049589,60]
[314238869,1708114270588,-500.0,0.00049589,60]
[314238870,1708114270597,-500.0,0.00049589,60]
[314238871,1708114270607,-500.0,0.00049589,60]
[314238872,1708114270616,-500.0,0.00049589,60]
[314238873,1708114270626,-500.0,0.00049589,60]
[314238874,1708114270638,-500.0,0.00049589,60]
[314238875,1708114270648,-1082.36,0.00049589,60]
[314238876,1708114270657,-500.0,0.00049589,60]
[314238877,1708114270668,-500.0,0.00049589,60]
[314238878,1708114270678,-500.0,0.00049589,60]
[314238879,1708114270687,-500.0,0.00049589,60]
[314238880,1708114270697,-500.0,0.00049589,60]
[314238881,1708114270708,-708.37,0.00049589,60]
[314238882,1708114270717,-1244.45,0.00049589,60]
[314238883,1708114270727,-2681.89,0.00049589,60]
[314238884,1708114270736,-3039.1,0.00049589,60]
[314238885,1708114270746,-1088.61,0.00049589,2]
[314238886,1708114270755,-500.0,0.00049589,60]
[314238887,1708114270765,-549.22186445,0.00049589,60]
[314238888,1708114270775,-500.0,0.00049589,60]
[314238889,1708114270784,-500.0,0.00049589,60]
[314238890,1708114270794,-500.0,0.00049589,60]
[314238891,1708114270803,-500.0,0.00049589,60]
[314238892,1708114270813,-500.0,0.00049589,60]
[314238893,1708114270822,-500.0,0.00049589,60]
[314238894,1708114270832,-500.0,0.00049589,60]
[314238895,1708114270842,-568.07,0.00049589,60]
[314238896,1708114270852,-500.0,0.00049589,60]
[314238897,1708114270862,-500.0,0.00049589,60]
[314238898,1708114270871,-776.18,0.00049589,60]
[314238899,1708114270882,-829.55,0.00049589,60]
[314238900,1708114270891,-355.17540234,0.00049589,60]
[314238901,1708114270900,-4505.12,0.00049589,60]
[314238902,1708114270910,-3307.62,0.00049589,60]
[314238903,1708114270920,-500.0,0.00049589,60]
[314238904,1708114270930,-1048.01,0.00049589,60]
[314238905,1708114270941,-500.0,0.00049589,30]
[314238906,1708114270950,-1283.86,0.00049589,60]
[314238907,1708114270960,-500.0,0.00049589,60]
[314238908,1708114270969,-691.9,0.00049589,60]
[314238909,1708114270978,-500.0,0.00049589,60]
[314238910,1708114270988,-500.0,0.00049589,60]
[314238911,1708114270997,-500.0,0.00049589,60]
[314238912,1708114271006,-801.1,0.00049589,60]
[314238913,1708114271015,-500.0,0.00049589,60]
[314238914,1708114271025,-669.97,0.00049589,60]
[314238915,1708114271034,-500.0,0.00049589,60]
[314238916,1708114271043,-500.0,0.00049589,60]
[314238917,1708114271053,-2745.16,0.00049589,60]
[314238918,1708114271062,-500.0,0.00049589,60]
[314238919,1708114271071,-538.19,0.00049589,60]
[314238920,1708114271080,-14010.98,0.00049589,60]
[314238921,1708114271090,-572.41775291,0.00049589,60]
[314238922,1708114271099,-500.0,0.00049589,60]
[314238923,1708114271108,-500.0,0.00049589,60]
[314238924,1708114271118,-500.0,0.00049589,60]
[314238925,1708114271127,-500.0,0.00049589,60]
[314238926,1708114271137,-10000.0,0.00049589,60]
[314238927,1708114271146,-500.0,0.00049589,60]
[314238928,1708114271155,-500.0,0.00049589,60]
[314238929,1708114271164,-500.0,0.00049589,60]
[314238930,1708114271174,-500.0,0.00049589,60]
[314238931,1708114271183,-6407.59,0.00049589,60]
[314238932,1708114271192,-500.0,0.00049589,60]
[314238933,1708114271201,-500.0,0.00049589,60]
[314238934,1708114271211,-2025.94,0.00049589,60]
[314238935,1708114271220,-1437.33,0.00049589,60]
[314238936,1708114271230,-500.0,0.00049589,60]
[314238937,1708114271240,-500.0,0.00049589,60]
[314238938,1708114271249,-500.0,0.00049589,60]
[314238939,1708114271258,-500.0,0.00049589,60]
[314238940,1708114271267,-500.0,0.00049589,60]
[314238941,1708114271277,-500.0,0.00049589,60]
[314238942,1708114271286,-1189.37,0.00049589,60]
[314238943,1708114271295,-500.0,0.00049589,7]
[314238944,1708114271305,-553.63,0.00049589,60]
[314238945,1708114271314,-500.0,0.00049589,60]
[314238946,1708114271323,-500.0,0.00049589,60]
[314238947,1708114271332,-500.0,0.00049589,60]
[314238948,1708114271341,-500.0,0.00049589,60]
[314238949,1708114271350,-500.0,0.00049589,60]
[314238950,1708114271359,-3625.09,0.00049589,60]
[314238951,1708114271369,-500.0,0.00049589,60]
[314238952,1708114271378,-500.0,0.00049589,60]
[314238953,1708114271388,-500.0,0.00049589,60]
[314238954,1708114271398,-4400.67,0.00049589,60]
[314238955,1708114271407,-500.0,0.00049589,60]
[314238956,1708114271417,-500.0,0.00049589,60]
[314238957,1708114271427,-500.0,0.00049589,60]
[314238958,1708114271436,-500.0,0.00049589,60]
[314238959,1708114271447,-500.0,0.00049589,60]
[314238960,1708114271456,-2370.2,0.00049589,60]
[314238961,1708114271466,-586.13,0.00049589,60]
[314238962,1708114271476,-1496.98,0.00049589,60]
[314238963,1708114271485,-500.0,0.00049589,60]
[314238964,1708114271496,-500.0,0.00049589,60]
[314238965,1708114271506,-2225.09,0.00049589,60]
[314238966,1708114271516,-500.0,0.00049589,60]
[314238967,1708114271525,-500.0,0.00049589,60]
[314238968,1708114271535,-501.94409166,0.00049589,60]
[314238969,1708114271544,-1376.95,0.00049589,60]
[314238970,1708114271553,-500.0,0.00049589,60]
[314238971,1708114271562,-500.0,0.00049589,60]
[314238972,1708114271571,-528.53977236,0.00049589,60]
[314238973,1708114271582,-500.0,0.00049589,60]
[314238974,1708114271592,-500.0,0.00049589,60]
[314238975,1708114271602,-689.77,0.00049589,60]
[314238976,1708114271611,-8291.03,0.00049589,60]
[314238977,1708114271621,-500.0,0.00049589,60]
[314238978,1708114271631,-500.0,0.00049589,60]
[314238979,1708114271644,-500.0,0.00049589,60]
[314238980,1708114271655,-500.0,0.00049589,60]
[314238981,1708114271666,-1917.15,0.00049589,60]
[314238982,1708114271679,-500.0,0.00049589,60]
[314238983,1708114271690,-554.38,0.00049589,60]
[314238984,1708114271702,-2653.68,0.00049589,60]
[314238985,1708114271713,-500.0,0.00049589,60]
[314238986,1708114271724,-850.72,0.00049589,60]
[314238987,1708114271735,-610.16,0.00049589,60]
[314238988,1708114271745,-591.52,0.00049589,60]
[314238989,1708114271756,-570.56,0.00049589,60]
[314238990,1708114271767,-500.0,0.00049589,60]
[314238991,1708114271778,-500.0,0.00049589,60]
[314238992,1708114271789,-500.0,0.00049589,60]
[314238993,1708114271799,-1048.6,0.00049589,60]
[314238994,1708114271809,-500.0,0.00049589,60]
[314238995,1708114271820,-500.0,0.00049589,60]
[314238996,1708114271830,-609.42,0.00049589,60]
[314238997,1708114271840,-500.0,0.00049589,60]
[314238998,1708114271850,-627.98,0.00049589,60]
[314238999,1708114271860,-500.0,0.00049589,60]
[314239000,1708114271870,-24352.15,0.00049589,60]
[314239001,1708114271880,-9498.17,0.00049589,60]
[314239002,1708114271897,-500.0,0.00049589,60]
[314239003,1708114271907,-500.0,0.00049589,60]
[314239004,1708114271917,-5333.6,0.00049589,60]
[314239005,1708114271927,-538.03,0.00049589,60]
[314239006,1708114271937,-2552.09,0.00049589,60]
[314239007,1708114271948,-500.0,0.00049589,60]
[314239008,1708114271958,-500.0,0.00049589,60]
[314239009,1708114271968,-204.74194501,0.00049589,60]
[314239010,1708114271978,-2312.42,0.00049589,60]
[314239011,1708114271987,-500.0,0.00049589,60]
[314239012,1708114271996,-500.0,0.00049589,60]
[314239013,1708114272006,-544.82,0.00049589,60]
[314239014,1708114272016,-500.0,0.00049589,60]
[314239015,1708114272026,-500.0,0.00049589,60]
[314239016,1708114272175,-500.0,0.00049589,60]
[314239017,1708114272185,-500.0,0.00049589,60]
[314239018,1708114272195,-500.0,0.00049589,60]
[314239019,1708114272204,-500.0,0.00049589,60]
[314239020,1708114272213,-525.08076331,0.00049589,60]
[314239021,1708114272222,-842.25,0.00049589,60]
[314239022,1708114272231,-1186.78,0.00049589,60]
[314239023,1708114272240,-500.0,0.00049589,60]
[314239024,1708114272249,-500.0,0.00049589,60]
[314239025,1708114272258,-500.0,0.00049589,60]
[314239026,1708114272267,-500.0,0.00049589,60]
[314239027,1708114272276,-500.0,0.00049589,60]
[314239028,1708114272286,-500.0,0.00049589,60]
[314239029,1708114272295,-500.0,0.00049589,60]
[314239030,1708114272304,-500.0,0.00049589,60]
[314239031,1708114272313,-500.0,0.00049589,60]
[314239032,1708114272322,-500.0,0.00049589,60]
[314239033,1708114272331,-500.0,0.00049589,60]
[314239034,1708114272340,-539.74781041,0.00049589,60]
[314239035,1708114272352,-541.35346613,0.00049589,60]
[314239036,1708114272362,-802.5,0.00049589,60]
[314239037,1708114272372,-500.0,0.00049589,60]
[314239038,1708114272384,-500.0,0.00049589,60]
[314239039,1708114272394,-868.38,0.00049589,60]
[314239040,1708114272403,-500.0,0.00049589,60]
[314239041,1708114272413,-500.0,0.00049589,60]
[314239042,1708114272422,-1060.84,0.00049589,60]
[314239043,1708114272432,-500.0,0.00049589,60]
[314239044,1708114272441,-542.74,0.00049589,60]
[314239045,1708114272451,-883.24,0.00049589,60]
[314239046,1708114272460,-500.0,0.00049589,60]
[314239047,1708114272469,-500.0,0.00049589,60]
[314239048,1708114272480,-500.0,0.00049589,60]
[314239049,1708114272491,-500.0,0.00049589,60]
[314239050,1708114272506,-500.0,0.00049589,60]
[314239051,1708114272517,-500.0,0.00049589,60]
[314239052,1708114272528,-653.02,0.00049589,60]
[314239053,1708114272539,-500.0,0.00049589,14]
[314239054,1708114272549,-682.62,0.00049589,60]
[314239055,1708114272559,-500.0,0.00049589,60]
[314239056,1708114272570,-500.0,0.00049589,60]
[314239057,1708114272581,-1281.87,0.00049589,60]
[314239058,1708114272593,-500.0,0.00049589,60]
[314239059,1708114272603,-2265.69,0.00049589,60]
[314239060,1708114272614,-500.0,0.00049589,60]
[314239061,1708114272624,-500.0,0.00049589,60]
[314239062,1708114272641,-500.0,0.00049589,60]
[314239063,1708114272651,-651.99,0.00049589,60]
[314239064,1708114272660,-500.0,0.00049589,60]
[314239065,1708114272670,-500.0,0.00049589,60]
[314239066,1708114272679,-500.0,0.00049589,60]
[314239067,1708114272689,-1698.98,0.00049589,60]
[314239068,1708114272698,-500.0,0.00049589,60]
[314239069,1708114272707,-500.0,0.00049589,60]
[314239070,1708114272717,-7477.21,0.00049589,60]
[314239071,1708114272726,-500.0,0.00049589,60]
[314239072,1708114272736,-668.81,0.00049589,60]
[314239073,1708114272746,-743.66,0.00049589,60]
[314239074,1708114272756,-500.0,0.00049589,60]
[314239075,1708114272767,-500.0,0.00049589,60]
[314239076,1708114272777,-953.19,0.00049589,60]
[314239077,1708114272788,-500.0,0.00049589,60]
[314239078,1708114272799,-541.26,0.00049589,60]
[314239079,1708114272810,-500.0,0.00049589,60]
[314239080,1708114272820,-1410.39,0.00049589,60]
[314239081,1708114272829,-664.07,0.00049589,60]
[314239082,1708114272839,-155.49807468,0.00049589,60]
[314239083,1708114272849,-500.0,0.00049589,60]
[314239084,1708114272859,-3634.05,0.00049589,60]
[314239085,1708114272869,-1505.04,0.00049589,60]
[314239086,1708114272879,-6395.6,0.00049589,14]
[314239087,1708114272895,-500.0,0.00049589,60]
[314239088,1708114272905,-500.0,0.00049589,60]
[314239089,1708114272915,-2921.31,0.00049589,60]
[314239090,1708114272926,-979.4,0.00049589,60]
[314239091,1708114272937,-500.0,0.00049589,60]
[314239092,1708114272947,-506.3,0.00049589,60]
[314239093,1708114272957,-500.0,0.00049589,60]
[314239094,1708114272968,-500.0,0.00049589,60]
[314239095,1708114272982,-500.0,0.00049589,14]
[314239096,1708114272992,-1107.39,0.00049589,60]
[314239097,1708114273003,-843.46,0.00049589,60]
[314239098,1708114273014,-500.0,0.00049589,60]
[314239099,1708114273023,-500.0,0.00049589,60]
[314239100,1708114273033,-500.0,0.00049589,60]
[314239101,1708114273042,-500.0,0.00049589,60]
[314239102,1708114273051,-500.0,0.00049589,60]
[314239103,1708114273061,-698.93,0.00049589,60]
[314239104,1708114273070,-903.5,0.00049589,60]
[314239105,1708114273079,-500.0,0.00049589,60]
[314239106,1708114273088,-694.98,0.00049589,60]
[314239107,1708114273098,-500.0,0.00049589,60]
[314239108,1708114273107,-863.75,0.00049589,60]
[314239109,1708114273117,-500.0,0.00049589,60]
[314239110,1708114273126,-3262.84,0.00049589,60]
[314239111,1708114273149,-500.0,0.00049589,60]
[314239112,1708114273167,-500.0,0.00049589,60]
[314239113,1708114273185,-7047.5,0.00049589,60]
[314239114,1708114273205,-609.29,0.00049589,60]
[314239115,1708114273221,-3306.89,0.00049589,60]
[314239116,1708114273241,-1907.06,0.00049589,60]
[314239117,1708114273259,-505.82,0.00049589,60]
[314239118,1708114273273,-500.0,0.00049589,60]
[314239119,1708114273295,-500.0,0.00049589,60]
[314239120,1708114273312,-500.0,0.00049589,60]
[314239121,1708114273331,-762.87,0.00049589,2]
[314239122,1708114273351,-2528.97,0.00049589,60]
[314239123,1708114273364,-500.0,0.00049589,60]
[314239124,1708114273380,-1028.79,0.00049589,60]
[314239125,1708114273399,-500.0,0.00049589,60]
[314239126,1708114273411,-1887.23,0.00049589,60]
[314239127,1708114273428,-1125.98,0.00049589,60]
[314239128,1708114273444,-500.0,0.00049589,60]
[314239129,1708114273460,-500.0,0.00049589,60]
[314239130,1708114273475,-674.89,0.00049589,60]
[314239131,1708114273491,-500.0,0.00049589,60]
[314239132,1708114273506,-500.0,0.00049589,60]
[314239133,1708114273521,-583.02,0.00049589,60]
[314239134,1708114273536,-500.0,0.00049589,60]
[314239135,1708114273551,-500.0,0.00049589,7]
[314239136,1708114273566,-500.0,0.00049589,60]
[314239137,1708114273581,-500.0,0.00049589,60]
[314239138,1708114273598,-659.99,0.00049589,60]
[314239139,1708114273612,-500.0,0.00049589,60]
[314239140,1708114273627,-1604.63,0.00049589,60]
[314239141,1708114273643,-545.37,0.00049589,60]
[314239142,1708114273658,-500.0,0.00049589,60]
[314239143,1708114273673,-500.0,0.00049589,60]
[314239144,1708114273687,-500.0,0.00049589,60]
[314239145,1708114273703,-500.0,0.00049589,60]
[314239146,1708114273717,-500.0,0.00049589,60]
[314239147,1708114273732,-610.83,0.00049589,60]
[314239148,1708114273746,-1141.46,0.00049589,60]
[314239149,1708114273762,-500.0,0.00049589,60]
[314239150,1708114273776,-2239.25,0.00049589,60]
[314239151,1708114273791,-722.94,0.00049589,60]
[314239152,1708114273806,-500.0,0.00049589,60]
[314239153,1708114273821,-500.0,0.00049589,60]
[314239154,1708114273836,-500.0,0.00049589,60]
[314239155,1708114273851,-575.79,0.00049589,60]
[314239156,1708114273865,-500.0,0.00049589,60]
[314239157,1708114273880,-2623.13,0.00049589,60]
[314239158,1708114273896,-500.0,0.00049589,60]
[314239159,1708114273911,-500.0,0.00049589,60]
[314239160,1708114273927,-672.34,0.00049589,60]
[314239161,1708114273943,-659.84,0.00049589,60]
[314239162,1708114273959,-4181.38,0.00049589,60]
[314239163,1708114273974,-500.0,0.00049589,60]
[314239164,1708114273989,-500.0,0.00049589,60]
[314239165,1708114274008,-530.45,0.00049589,60]
[314239166,1708114274025,-500.0,0.00049589,60]
[314239167,1708114274040,-500.0,0.00049589,60]
[314239168,1708114274056,-500.0,0.00049589,60]
[314239169,1708114274073,-1141.46,0.00049589,60]
[314239170,1708114274089,-842.22666363,0.00049589,60]
[314239171,1708114274104,-500.0,0.00049589,60]
[314239172,1708114274120,-500.0,0.00049589,60]
[314239173,1708114274136,-500.0,0.00049589,60]
[314239174,1708114274152,-500.0,0.00049589,60]
[314239175,1708114274167,-553.74,0.00049589,60]
[314239176,1708114274182,-500.0,0.00049589,60]
[314239177,1708114274198,-500.0,0.00049589,60]
[314239178,1708114274212,-1932.65,0.00049589,60]
[314239179,1708114274227,-732.35,0.00049589,60]
[314239180,1708114274242,-500.0,0.00049589,60]
[314239181,1708114274257,-500.0,0.00049589,60]
[314239182,1708114274273,-500.0,0.00049589,60]
[314239183,1708114274288,-678.89,0.00049589,60]
[314239184,1708114274303,-500.0,0.00049589,60]
[314239185,1708114274319,-500.0,0.00049589,60]
[314239186,1708114274334,-1253.02,0.00049589,60]
[314239187,1708114274349,-500.0,0.00049589,60]
[314239188,1708114274367,-995.7,0.00049589,60]
[314239189,1708114274384,-1175.18,0.00049589,60]
[314239190,1708114274400,-2012.14,0.00049589,60]
[314239191,1708114274417,-845.2,0.00049589,60]
[314239192,1708114274432,-726.13,0.00049589,60]
[314239193,1708114274448,-500.0,0.00049589,60]
[314239194,1708114274463,-500.0,0.00049589,60]
[314239195,1708114274478,-5038.929478,0.000496,2]
[314239196,1708114274494,-154.13,0.000496,6]
[314239197,1708114274510,-154.13,0.000496,6]
[314239198,1708114274525,-154.13,0.000496,6]
[314239199,1708114274540,-154.13,0.000496,6]
[314239200,1708114274555,-154.13,0.000496,6]
[314239201,1708114274570,-154.13,0.000496,6]
[314239202,1708114274585,-154.13,0.000496,6]
[314239203,1708114274600,-556.57,0.000496,6]
[314239204,1708114274615,-556.57,0.000496,6]
[314239205,1708114274630,-556.57,0.000496,6]
[314239206,1708114274647,-556.57,0.000496,6]
[314239207,1708114274847,-556.57,0.000496,6]
[314239208,1708114274861,-556.57,0.000496,6]
[314239209,1708114274872,-556.57,0.000496,6]
[314239210,1708114274881,-556.57,0.000496,6]
[314239211,1708114274892,-556.57,0.000496,6]
[314239212,1708114274901,-556.57,0.000496,6]
[314239213,1708114274911,-556.57,0.000496,6]
[314239214,1708114274922,-556.57,0.000496,6]
[314239215,1708114274932,-556.57,0.000496,6]
[314239216,1708114274942,-556.57,0.000496,6]
[314239217,1708114274952,-556.57,0.000496,6]
[314239218,1708114274962,-556.57,0.000496,6]
[314239219,1708114274973,-556.57,0.000496,6]
[314239220,1708114274982,-556.57,0.000496,6]
[314239221,1708114274993,-556.57,0.000496,6]
[314239222,1708114275002,-556.57,0.000496,6]
[314239223,1708114275012,-3000.0,0.00049633,2]
[314239224,1708114275022,-500.0,0.00049689,30]
[314239225,1708114275032,-200.0,0.000497,27]
[314239226,1708114275042,-2187.834492,0.000497,24]
[314239227,1708114275052,-1967.459959,0.000497,30]
[314239228,1708114275061,-200.0,0.000497,79]
[314239229,1708114275071,-182.73,0.000497,35]
[314239230,1708114275081,-152.60143086,0.00049768,43]
[314239231,1708114275090,-930.54,0.00049777,2]
[314239232,1708114275101,-18703.3500283,0.000498,36]
[314239233,1708114275110,-281021.0,0.000498,37]
[314239234,1708114275119,-388.51,0.000498,7]
[314239235,1708114275129,-963.52854234,0.000498,60]
[314239236,1708114275139,-500.2443,0.000498,30]
[314239237,1708114275149,-703.73,0.00049863,2]
[314239238,1708114275159,-1124.61,0.00049863,7]
[314239239,1708114275168,-500.0,0.00049863,60]
[314239240,1708114275177,-500.0,0.00049863,60]
[314239241,1708114275186,-500.0,0.00049863,60]
[314239242,1708114275195,-500.0,0.00049863,60]
[314239243,1708114275204,-357.62192202,0.00049863,60]
[314239244,1708114275214,-500.0,0.00049863,60]
[314239245,1708114275223,-290.0,0.00049863,30]
[314239246,1708114275232,-500.0,0.00049863,60]
[314239247,1708114275242,-500.0,0.00049863,60]
[314239248,1708114275251,-500.0,0.00049863,60]
[314239249,1708114275260,-500.0,0.00049863,60]
[314239250,1708114275269,-500.0,0.00049863,60]
[314239251,1708114275278,-500.0,0.00049863,60]
[314239252,1708114275288,-500.0,0.00049863,60]
[314239253,1708114275297,-500.0,0.00049863,60]
[314239254,1708114275306,-500.0,0.00049863,60]
[314239255,1708114275316,-500.0,0.00049863,60]
[314239256,1708114275326,-500.0,0.00049863,60]
[314239257,1708114275335,-500.0,0.00049863,60]
[314239258,1708114275345,-500.0,0.00049863,60]
[314239259,1708114275354,-500.0,0.00049863,60]
[314239260,1708114275363,-500.0,0.00049863,60]
[314239261,1708114275373,-500.0,0.00049863,60]
[314239262,1708114275382,-500.0,0.00049863,60]
[314239263,1708114275392,-500.0,0.00049863,60]
[314239264,1708114275404,-500.0,0.00049863,60]
[314239265,1708114275412,-500.0,0.00049863,60]
[314239266,1708114275419,-500.0,0.00049863,60]
[314239267,1708114275425,-500.0,0.00049863,60]
[314239268,1708114275432,-250.0,0.00049863,60]
[314239269,1708114275438,-500.0,0.00049863,60]
[314239270,1708114275447,-500.0,0.00049863,60]
[314239271,1708114275456,-500.0,0.00049863,60]
[314239272,1708114275465,-500.0,0.00049863,60]
[314239273,1708114275474,-500.0,0.00049863,60]
[314239274,1708114275483,-500.0,0.00049863,60]
[314239275,1708114275492,-500.0,0.00049863,60]
[314239276,1708114275502,-500.0,0.00049863,60]
[314239277,1708114275513,-500.0,0.00049863,60]
[314239278,1708114275522,-500.0,0.00049863,60]
[314239279,1708114275531,-500.0,0.00049863,60]
[314239280,1708114275540,-500.0,0.00049863,60]
[314239281,1708114275550,-557.78506152,0.00049863,60]
[314239282,1708114275560,-500.0,0.00049863,60]
[314239283,1708114275569,-314.59561163,0.00049863,60]
[314239284,1708114275578,-500.0,0.00049863,60]
[314239285,1708114275589,-500.0,0.00049863,60]
[314239286,1708114275598,-500.0,0.00049863,60]
[314239287,1708114275608,-500.0,0.00049863,60]
[314239288,1708114275618,-500.0,0.00049863,60]
[314239289,1708114275627,-500.0,0.00049863,60]
[314239290,1708114275641,-500.0,0.00049863,60]
[314239291,1708114275650,-500.0,0.00049863,60]
[314239292,1708114275660,-500.0,0.00049863,60]
[314239293,1708114275670,-500.0,0.00049863,60]
[314239294,1708114275679,-500.0,0.00049863,60]
[314239295,1708114275688,-500.0,0.00049863,60]
[314239296,1708114275698,-500.0,0.00049863,60]
[314239297,1708114275707,-500.0,0.00049863,60]
[314239298,1708114275717,-500.0,0.00049863,60]
[314239299,1708114275726,-500.0,0.00049863,60]
[314239300,1708114275735,-500.0,0.00049863,60]
[314239301,1708114275744,-500.0,0.00049863,60]
[314239302,1708114275754,-500.0,0.00049863,60]
[314239303,1708114275763,-500.0,0.00049863,60]
[314239304,1708114275772,-500.0,0.00049863,7]
[314239305,1708114275782,-500.0,0.00049863,60]